Cogmind - Beta 16 @@@ ROGUE MODE // 2025.11.03 @ 20:35:47 Player: L_ Result: Destroyed by as-03284 with Assembled Rifle Performance ------------- Evolutions (0) 0 Regions Visited (2) 400 Robots Destroyed (15) 75 Value Destroyed (391) 391 Prototype IDs (0) 0 Alien Tech Used (0) 0 Bonus (0) 0 TOTAL SCORE: 866 Bonus ------- None Cogmind --------- Core Integrity 0/250 Matter 225/300 Energy 88/100 System Corruption 0% Temperature Cool (15) Movement Walking (120) Location -10/Mines Parts ------- > --- POWER (1) -------- (None) > --- PROPULSION (2) --- Aluminum Leg Aluminum Leg > --- UTILITY (2) ------ Small Storage Unit Terrain Scanner > --- WEAPON (2) ------- Beam Cannon > --- INVENTORY (8) ---- Ion Engine Aluminum Leg Targeting Computer EM Pulse Gun Assault Rifle Grenade Launcher Mining Claw Peak State ------------ > --- POWER ------------ Ion Engine > --- PROPULSION ------- Light Treads Light Treads > --- UTILITY ---------- Small Storage Unit Seismic Detector > --- WEAPON ----------- Assault Rifle > --- INVENTORY -------- Ion Engine EM Pulse Gun Grenade Launcher [Rating: 6] Favorites ----------- Power Ion Engine Engine Ion Engine Propulsion Aluminum Leg Treads Light Treads Leg Aluminum Leg Utility Small Storage Unit Device Seismic Detector Storage Small Storage Unit Weapon Beam Cannon Energy Cannon Beam Cannon Ballistic Gun Assault Rifle Launcher Grenade Launcher Build | -11 -10 -10 ------- Run | Yrd Mat Min Slots Evolved . | . . . Power . | . . . Propulsion . | . . . Utility . | . . . Weapon . | . . . Parts Attached 11 | 5 6 . Power 1 | 1 . . Engine 1 | 1 . . Core . | . . . Reactor . | . . . Propulsion 4 | 2 2 . Treads 2 | 2 . . Leg 2 | . 2 . Wheel . | . . . Hover . | . . . Flight . | . . . Utility 3 | 1 2 . Device 2 | . 2 . Storage 1 | 1 . . Processor . | . . . Hackware . | . . . Protection . | . . . Artifact . | . . . Weapon 3 | 1 2 . Energy Gun . | . . . Energy Cannon 1 | . 1 . Ballistic Gun 1 | 1 . . Ballistic Cannon . | . . . Launcher 1 | . 1 . Special Weapon . | . . . Impact Weapon . | . . . Slashing Weapon . | . . . Piercing Weapon . | . . . Special Melee Weapon . | . . . Unidentified Prototypes . | . . . Parts Lost 2 | . 2 . Power 1 | . 1 . Propulsion . | . . . Utility 1 | . 1 . Weapon . | . . . Highest Loss Streak 2 | . 2 . To Critical Strikes . | . . . Average Backups 5 | 1 6 7 Power . | . 1 1 Propulsion . | . . 1 Utility . | . . 1 Weapon 3 | . 4 4 Tool/Special . | . . . Unused Backups 7 | . 2 5 Power 1 | . . 1 Propulsion 1 | . . 1 Utility 2 | . 1 1 Weapon 3 | . 1 2 Tool/Special . | . . . Average Slot Usage (%) 77 | . 79 71 Engine 9 | . 11 . Treads 10 | . 13 . Leg 17 | . 14 28 Device 11 | . 11 14 Storage 14 | . 14 14 Energy Cannon 9 | . 8 14 Ballistic Gun 3 | . 4 . Launcher 1 | . 1 . Peak Build Rating 6 | 5 6 5 Average Rating 5 | 4 5 5 On Entrance 3 | . 5 5 Avg Prop Armor Cover (%) . | . . . Naked Turns . | . . . Heaviest Build 14 | 12 14 9 Greatest Support 40 | 40 40 20 Greatest Overweight (x) 1 | 1 1 . Average Overweight (x) . | . . . Largest Inventory Capacity 8 | 8 8 8 Average Capacity 7 | 6 8 8 Most Carried 8 | 3 8 7 Average Carried 5 | 1 6 7 Final Capacity 8 | 8 8 8 Final Carried 7 | 2 7 7 Class Distribution -------------------- 100% | Mutant Dominant Class ---------------- Mutant | -10/Materials Mutant | -10/Mines Resources | -11 -10 -10 ----------- Run | Yrd Mat Min Matter Collected 363 | 183 180 . Remotely . | . . . Salvage Created 349 | . 349 . Parts 23 | . 23 . Haulers Intercepted . | . . . Recyclers Shooed . | . . . Parts Field Recycled . | . . . Retrieved Matter . | . . . Parts Self-Destructed . | . . . Prevented . | . . . Parts Restored . | . . . Kills | -11 -10 -10 ------- Run | Yrd Mat Min Combat Hostiles Destroyed 11 | . 11 . Guns 2 | . 2 . Cannons 4 | . 4 . AOE 5 | . 5 . Classes Destroyed 4 | . 4 . Builder 1 | . 1 . Watcher 3 | . 3 . Swarmer 3 | . 3 . Grunt 8 | . 8 . Best Kill Streak 4 | . 4 . Combat Bots Only 3 | . 3 . Max Kills in Single Turn 2 | . 2 . Gunslinging . | . . . Exploded 1 | . 1 . Melee . | . . . Uniques/NPCs Destroyed . | . . . Combat | -11 -10 -10 -------- Run | Yrd Mat Min Hostile Shots Fired 82 | . 78 4 Missed 22 | . 19 3 Hits 60 | . 59 1 Projectile 60 | . 59 1 Critical Strikes 1 | . 1 . Damage Taken 663 | . 649 14 Core 260 | . 246 14 Absorbed by Shields . | . . . Core Remaining (%) 100 | 100 . . Volleys Fired 47 | . 45 2 Largest 1 | . 1 1 Hottest 60 | . 60 60 Shots Fired 47 | . 45 2 Gun 11 | . 11 . Cannon 28 | . 26 2 Launcher 8 | . 8 . Special . | . . . Kinetic 11 | . 11 . Thermal 28 | . 26 2 Explosive 8 | . 8 . Electromagnetic . | . . . Robot Hit Streak 9 | . 9 4 Robot Miss Streak 2 | . 2 1 Penetration Max . | . . . Secondary Targets . | . . . Shots Hit Robots 34 | . 33 1 Core Hits 21 | . 21 . Critical Kills . | . . . Critical Parts Destroyed . | . . . Critical Strikes . | . . . Melee Attacks . | . . . Impact . | . . . Slashing . | . . . Piercing . | . . . Sneak Attacks . | . . . Combat Hostiles . | . . . Follow-up Attacks . | . . . Damage Inflicted 842 | . 824 18 Guns 129 | . 129 . Cannons 312 | . 294 18 Explosions 401 | . 401 . Melee . | . . . Ramming . | . . . Kinetic 129 | . 129 . Thermal 312 | . 294 18 Explosive 401 | . 401 . Electromagnetic . | . . . Impact . | . . . Slashing . | . . . Piercing . | . . . Highest Corruption . | . . . Average Corruption . | . . . Corruption Purged . | . . . Corruption Blocked . | . . . Overload Shots . | . . . Overflow Damage . | . . . Projectiles . | . . . Explosions . | . . . Melee . | . . . Knockbacks . | . . . Impact . | . . . Kinetic . | . . . Secondary . | . . . Self-Inflicted Damage . | . . . Shots . | . . . Rammed . | . . . Targets Rammed . | . . . Kicked . | . . . Crushed . | . . . Highest Temperature 296 | . 296 15 Average Temperature 113 | . 116 10 Received Heat Transfer 318 | . 318 . Siege Activations . | . . . Martial Activations . | . . . Shielding Activations . | . . . Robots Disrupted . | . . . Combat Hostiles . | . . . Robots Corrupted . | . . . Combat Hostiles . | . . . Parts Fried . | . . . Impact Corruptions . | . . . Robots Melted . | . . . Combat Hostiles . | . . . Parts Melted . | . . . Heat Transferred 666 | . 629 37 Parts Sabotaged . | . . . Parts Stolen . | . . . Parts Stripped . | . . . Power Chain Reactions . | . . . Alert | -11 -10 -10 ------- Run | Yrd Mat Min Maximum Alert Level . | . . . Low Security (%) 100 | 100 100 100 Level 1 . | . . . Level 2 . | . . . Level 3 . | . . . Level 4 . | . . . Level 5 . | . . . High Security . | . . . Max Security . | . . . Peak Influence 169 | . 169 44 Initial 44 | . . 44 Average 45 | . 61 13 Influence Increases 411 | . 411 . Destroy 0b10 Robot/C 220 | . 220 . Destroy 0b10 Robot/NC 20 | . 20 . Destroy Leader 56 | . 56 . Disable Machine 15 | . 15 . Destroy Structure 40 | . 40 . Lose Combat Pursuer 60 | . 60 . Influence Decreases 411 | . 296 115 Entered New Map 71 | . . 71 Time Decay 320 | . 276 44 Lost Part 20 | . 20 . Squads Dispatched 2 | . 2 . Investigation 1 | . 1 . Extermination . | . . . Reinforcement 1 | . 1 . Assault . | . . . Garrison . | . . . Intercept . | . . . Searches Triggered . | . . . Construction Impeded . | . . . Haulers Reinforced . | . . . Active Scanning Responses . | . . . Cargo Convoy Interrupts . | . . . Stealth | -11 -10 -10 --------- Run | Yrd Mat Min Distress Signals 5 | . 3 2 Communications Jammed . | . . . Distress Signals . | . . . Times Spotted 21 | . 19 2 Peak Tracking Total 4 | . 4 1 Tactical Retreats 4 | . 3 1 Traps | -11 -10 -10 ------- Run | Yrd Mat Min Traps Triggered 1 | . 1 . Indirectly . | . . . Trap Hack Attempts . | . . . Triggered . | . . . Disarmed . | . . . Reprogrammed . | . . . Reused . | . . . Traps Extracted . | . . . Installed . | . . . Triggered . | . . . Machines | -11 -10 -10 ---------- Run | Yrd Mat Min Machines Disabled 1 | . 1 . Max in Single Turn 1 | . 1 . Machines Repaired . | . . . Machines Dismantled . | . . . Machines Sabotaged . | . . . Overloaded Fab Kills . | . . . Hacking | -11 -10 -10 --------- Run | Yrd Mat Min Machines Accessed 2 | . 2 . Terminals 2 | . 2 . Fabricators . | . . . Repair Stations . | . . . Recycling Units . | . . . Scanalyzers . | . . . Garrison Access . | . . . Total Hacks 5 | . 5 . Successful 4 | . 4 . Failed 1 | . 1 . Catastrophic . | . . . Database Lockouts . | . . . Manual . | . . . Terminals 5 | . 5 . Fabricators . | . . . Repair Stations . | . . . Recycling Units . | . . . Scanalyzers . | . . . Garrison Access . | . . . Terminal Hacks 4 | . 4 . Record 1 | . 1 . Alert Level 1 | . 1 . Locate Traps 1 | . 1 . Dispatch Records 1 | . 1 . Fabricator Hacks . | . . . Repair Station Hacks . | . . . Recycling Unit Hacks . | . . . Scanalyzer . | . . . Garrison Access Hacks . | . . . Unauthorized Hacks . | . . . Terminals . | . . . Fabricators . | . . . Repair Stations . | . . . Recycling Units . | . . . Scanalyzers . | . . . Garrison Access . | . . . Data Cores Recovered . | . . . Used . | . . . Hacking Detections 1 | . 1 . Full Trace Events . | . . . Feedback Events . | . . . Feedback Blocked . | . . . Robot Schematics Acquired . | . . . Robots Built . | . . . Authchips . | . . . Time . | . . . Total Robot Build Rating . | . . . Part Schematics Acquired . | . . . Parts Built . | . . . Authchips . | . . . Time . | . . . Total Part Build Rating . | . . . Part Studies Acquired . | . . . Parts Repaired . | . . . Time . | . . . Parts Recycled . | . . . Recycled Matter . | . . . Retrieved Matter . | . . . Retrieved Components . | . . . Parts Scanalyzed . | . . . Part Schematics Acquired . | . . . Parts Damaged . | . . . Bothacking | -11 -10 -10 ------------ Run | Yrd Mat Min Used RIF Installer . | . . . Robots Hacked . | . . . Non-combat . | . . . Combat . | . . . Robot Hacks Applied . | . . . Relay Couplers Released . | . . . Fabnet Peak Effective % . | . . . Robots Rewired . | . . . Allies Hacked . | . . . Hacks Repelled . | . . . Allies | -11 -10 -10 -------- Run | Yrd Mat Min Total Allies . | . . . Largest Group . | . . . Highest-Rated Group . | . . . Highest-Rated Ally . | . . . Total Orders . | . . . Ally Attacks . | . . . Total Damage . | . . . Kills . | . . . Allies Corrupted . | . . . Allies Melted . | . . . Intel | -11 -10 -10 ------- Run | Yrd Mat Min Active Infowar (turns) 832 | . 656 176 Terrain 280 | . 104 176 Seismic 552 | . 552 . Robot Analysis Total . | . . . Derelict Logs Recovered 2 | . . 2 Drone Launches . | . . . Drone Recoveries . | . . . Exploration | -11 -10 -10 ------------- Run | Yrd Mat Min Turns Passed 1143 | 149 818 176 Spaces Moved 737 | 91 509 137 Core 11 | 11 . . Treads 279 | 80 199 . Legs 447 | . 310 137 Wheels . | . . . Hover . | . . . Flight . | . . . Fastest Speed 50 | 50 120 120 Average Speed 134 | 151 136 120 Slowest Speed 190 | 160 190 120 Overloaded Moves . | . . . Propulsion Burnouts . | . . . Robots Hopped . | . . . Potential Cave-ins . | . . . Cave-ins Triggered . | . . . Exploration Rate (%) 30 | 7 47 37 Regions Visited 2 Branch Regions 1 Pre-discovered Areas 1 | . . 1 Known Exits Taken . | . . . Unknown Exits Taken 2 | 1 1 . Scrap Searched . | . . . Spaces Dug . | . . . Terrain Destroyed 56 | . 56 . Melee . | . . . Projectile . | . . . AOE 56 | . 56 . Terrain Rammed . | . . . Walls Destroyed . | . . . Machines Disabled . | . . . Actions | -11 -10 -10 --------- Run | Yrd Mat Min Total 837 | 102 588 147 Wait 20 | . 12 8 Move 735 | 90 508 137 Hop . | . . . Pick Up 18 | 7 11 . Fast Attach . | . . . Attach 7 | 5 2 . Detach . | . . . Swap 6 | . 6 . Drop 4 | . 4 . Fire 47 | . 45 2 Melee . | . . . Ram . | . . . Kick . | . . . Crush . | . . . Escape Stasis . | . . . Rewire . | . . . Trap . | . . . Miscellaneous . | . . . Route ------- -11/Scrapyard -10/Materials (discovered 2 exits: [*Min x2]) -10/Mines History --------- Turn | Location | Event 8 | -11/Scrapyard | Discovered new exit (range 16) 150 | -11/Scrapyard | Entered Materials 187 | -10/Materials | Discovered new exit (range 16) 303 | -10/Materials | Build established: Mutant 668 | -10/Materials | Core integrity fell below 50% 732 | -10/Materials | Discovered new exit (range 14) 812 | -10/Materials | Core integrity fell below 20% 968 | -10/Materials | Entered Mines 969 | -10/Mines | Assembled infested the area 1039 | -10/Mines | Learned location of Storage (-9) 1040 | -10/Mines | Learned Materials emergency access door positions 1144 | -10/Mines | Destroyed by as-03284 with Assembled Rifle Last Messages --------------- U-05 Engineer builds a Wall. U-05 Engineer lays Concrete. U-05 Engineer builds a Wall. U-05 Engineer lays Concrete. K-01 Serf collects debris. U-05 Engineer builds a Wall. U-05 Engineer lays Concrete. U-05 Engineer builds a Wall. Acquired Terrain Scanner. R-06 Scavenger collects Lgt. Ion Engine. Acquired Targeting Computer. LOCATION=UNKNOWN GOAL=ESCAPE ALERT: Infestation in the mines, dispatching Demolisher response squad. Acquired derelict log, extracted data. World map updated: -9/Storage. Acquired derelict log, extracted data. Data stored: Materials emergency access points. K-01 Serf collects debris. Map ----- +----------------------------------------------------+ | | | | | | | | | ?????????????????????????????????????????????????? | | ?????????????????????????????????????????????????? | | ?????????????????????????????????????????????????? | | ?????????????????????????????????????????????????? | | ?????????????????????????????????????????????????? | | ?????????????????????????????????????????????????? | | ?????????????????????????????????????????????????? | | ?????????????????????????????????????????????????? | | ?????????????????????????????????????????????????? | | ?????????????????????????????????????????????????? | | ?????????????????????????????#???????????????????? | | ?????????????????????????????????????????????????? | | ?????##?????????????????#?###????????????????????? | | ??????????????? ??#####?## ##???????????????????? | | ?????????????? ???? #?# ##??????????????????? | | ??????????????????? #?# ##?????????????????? | | ?????#?????????????# #? ######????????????? | | ???#???????????????# #? !%= ??????????????? | | ?#????????????????## #?# !#????????????????? | | ??????????#??????## ### ##???????????????? | | ?????????#????#?## ## #???????????????? | | ????#?????????#?# a @ !#??????????????? | | ?????????######## """ |*%= #????????? | | ????????## """ * #????????? | | ? ???????# """ ##### =?????????? | | ???#????## ###### """ #####???????????????? | | ??## ????# ##???## ####???????????????????? | | ???# ##### #??#??## ###??????????????????????? | | ???# #??????## ##????????????????????????? | | ???### ### #?#?????# #?????????????????????????? | | #????# ### ###???#?# #?????????????????????????? | | ???### ### ##???? #?????????????????????????? | | ??## ##??# #?????????????????????????? | | ### ##?## ##?????????????????????????? | | ##?# ##??????????????????????????? | | ##? #???????????????????????????? | | #??#???????????????????????????? | | ## #??????????????????????????????? | | ###?## ##???#??????????????????????????? | | ?????### ###???????????????????????????????? | | ???????## ##???#?????????????????????????????? | | ?##????### #??????????????????????????????????? | | ????????## ##??????????????????????????????????? | | ?????????# ##???????????????????????????????????? | | ########## #????????????????????????????????????? | | # #????????????????????????????????????? | +----------------------------------------------------+ Best States ------------- Heat Dissipation 25 Energy Generation 10 Energy Capacity 250 Matter Stores 300 Matter Capacity 300 Sight Range 16 Terrain Scan Range 14 Terrain Scan Density 10 Evasion (%) 55 Recoil Reduction 2 Item Schematics ----------------- None Robot Schematics ------------------ None Fabricated ------------ Nothing Repaired ---------- Nothing Studied --------- None Alien Tech Used ----------------- None Achievements -------------- None Challenges ------------ None Game ------ Seed DataHackingMeganuke Manual? 0 Play Time 00:13:22 Cumulative 5.5 hours Start 2025.11.03 @ 19:58:52 End 2025.11.03 @ 20:35:47 Sessions 1 Manual Loads 0 Difficulty Rogue Special Mode None Game No. 13 Rogue 13 Adventurer 0 Explorer 0 Win Type - Total 0 Types 0/0/0/0/0/0/0/0/0/0 Lore% 9 Gallery% 8 Achievement% 5 Wizard Run 0 Options --------- Layout 1 ASCII 0 Keyboard 0 Movement Arrows Keybinds 0 Fullscreen 2 Font 24/Smallcaps Map View 50x35 Zoom Use 0% Tactical HUD 0 Map Filters NONE Filters NONE Steam 1 RUN: bb2e8d7e-b575-4894-915b-3a7954d67d0e